[Event "Late-Titled-Tuesday-Blitz-November-28-2023"]
[Site "Chess.com"]
[Date "2023.11.28"]
[Round "4"]
[White "dropstoneDP"]
[Black "ArtemDyachuk"]
[Result "1-0"]
[WhiteElo "2957"]
[BlackElo "2558"]
[TimeControl "180+1"]
[EndTime "14:36:31 PST"]
[Termination "dropstoneDP won by checkmate"]

1. e4 {[%clk 0:02:57.7]} 1... e5 {[%clk 0:02:53.4]} 2. Nf3 {[%clk 0:02:58]} 2...
Nc6 {[%clk 0:02:52.6]} 3. Bc4 {[%clk 0:02:58.5]} 3... Nf6 {[%clk 0:02:49.2]} 4.
d3 {[%clk 0:02:58.7]} 4... h6 {[%clk 0:02:49.5]} 5. c3 {[%clk 0:02:57.7]} 5...
d6 {[%clk 0:02:49.3]} 6. a4 {[%clk 0:02:49.2]} 6... g6 {[%clk 0:02:46.8]} 7. O-O
{[%clk 0:02:48.4]} 7... Bg7 {[%clk 0:02:46.7]} 8. Re1 {[%clk 0:02:49.1]} 8...
O-O {[%clk 0:02:47]} 9. Nbd2 {[%clk 0:02:49]} 9... Kh8 {[%clk 0:02:27.8]} 10. a5
{[%clk 0:02:47.1]} 10... Nh7 {[%clk 0:02:26.5]} 11. a6 {[%clk 0:02:46.9]} 11...
b6 {[%clk 0:02:18.9]} 12. Bd5 {[%clk 0:02:46.7]} 12... Bd7 {[%clk 0:02:18.9]}
13. b4 {[%clk 0:02:42.2]} 13... Rb8 {[%clk 0:02:18.2]} 14. b5 {[%clk 0:02:38.4]}
14... Ne7 {[%clk 0:02:17.6]} 15. Bc4 {[%clk 0:02:32.8]} 15... f5 {[%clk
0:02:15.5]} 16. h3 {[%clk 0:02:22.6]} 16... f4 {[%clk 0:02:09.9]} 17. d4 {[%clk
0:02:19.8]} 17... g5 {[%clk 0:02:04.9]} 18. dxe5 {[%clk 0:02:16.9]} 18... dxe5
{[%clk 0:02:04.3]} 19. Ba3 {[%clk 0:02:17.2]} 19... Qe8 {[%clk 0:02:00.3]} 20.
Nh2 {[%clk 0:01:57.2]} 20... h5 {[%clk 0:01:41.4]} 21. Qe2 {[%clk 0:01:53.9]}
21... Rf6 {[%clk 0:01:34.7]} 22. Rad1 {[%clk 0:01:50.5]} 22... Ng6 {[%clk
0:01:30.8]} 23. Qxh5 {[%clk 0:01:48.5]} 23... Bxb5 {[%clk 0:01:17.7]} 24. Bxb5
{[%clk 0:01:48.5]} 24... Qxb5 {[%clk 0:01:18.6]} 25. Ndf3 {[%clk 0:01:46.7]}
25... Kg8 {[%clk 0:01:03.9]} 26. Ng4 {[%clk 0:01:44.1]} 26... Re6 {[%clk
0:01:03]} 27. Nxg5 {[%clk 0:01:35.5]} 27... Nxg5 {[%clk 0:01:03.9]} 28. Qxg5
{[%clk 0:01:36]} 28... Qxa6 {[%clk 0:01:03.8]} 29. Qf5 {[%clk 0:01:25.7]} 29...
Qc8 {[%clk 0:00:53.6]} 30. Rd5 {[%clk 0:01:14.2]} 30... c6 {[%clk 0:00:45.4]}
31. Rd3 {[%clk 0:01:11.7]} 31... c5 {[%clk 0:00:32]} 32. Red1 {[%clk 0:01:11.4]}
32... Rc6 {[%clk 0:00:25.1]} 33. Rd7 {[%clk 0:01:09.6]} 33... Qf8 {[%clk
0:00:19.7]} 34. Rxa7 {[%clk 0:01:08.3]} 34... Ra8 {[%clk 0:00:16.1]} 35. Qxf8+
{[%clk 0:01:06.2]} 35... Rxf8 {[%clk 0:00:15.5]} 36. Rdd7 {[%clk 0:01:05.9]}
36... Rb8 {[%clk 0:00:05.8]} 37. Rxg7+ {[%clk 0:01:05.7]} 37... Kf8 {[%clk
0:00:06.7]} 38. Raf7+ {[%clk 0:01:05.3]} 38... Ke8 {[%clk 0:00:06.1]} 39. Nf6+
{[%clk 0:01:05.9]} 39... Kd8 {[%clk 0:00:07]} 40. Rg8+ {[%clk 0:01:05.2]} 40...
Nf8 {[%clk 0:00:06.1]} 41. Rgxf8# {[%clk 0:01:06.1]} 1-0

[Event "Late-Titled-Tuesday-Blitz-November-28-2023"]
[Site "Chess.com"]
[Date "2023.11.28"]
[Round "4"]
[White "GlavkonVVS"]
[Black "Alex_Sahakyan2006"]
[Result "0-1"]
[WhiteElo "2513"]
[BlackElo "2696"]
[TimeControl "180+1"]
[EndTime "14:36:41 PST"]
[Termination "Alex_Sahakyan2006 won by checkmate"]

1. c4 {[%clk 0:03:00.9]} 1... g6 {[%clk 0:03:00.9]} 2. Nc3 {[%clk 0:03:00.5]}
2... Bg7 {[%clk 0:03:01.3]} 3. Nf3 {[%clk 0:03:01.1]} 3... c5 {[%clk 0:03:01.3]}
4. g3 {[%clk 0:03:00.6]} 4... Nc6 {[%clk 0:03:00.8]} 5. Bg2 {[%clk 0:03:01]}
5... d6 {[%clk 0:03:01.6]} 6. O-O {[%clk 0:03:01.1]} 6... Bd7 {[%clk 0:03:02.3]}
7. d3 {[%clk 0:03:01.6]} 7... Qc8 {[%clk 0:03:02.9]} 8. h4 {[%clk 0:03:01.5]}
8... Bh3 {[%clk 0:03:03.1]} 9. a3 {[%clk 0:03:01.6]} 9... Nf6 {[%clk 0:03:02.2]}
10. Rb1 {[%clk 0:03:00.7]} 10... O-O {[%clk 0:02:59.1]} 11. b4 {[%clk
0:02:58.3]} 11... Bxg2 {[%clk 0:02:59.3]} 12. Kxg2 {[%clk 0:02:58.1]} 12... b6
{[%clk 0:03:00.2]} 13. e4 {[%clk 0:02:42.7]} 13... Ng4 {[%clk 0:02:53.5]} 14.
Ne2 {[%clk 0:02:38.7]} 14... f5 {[%clk 0:02:49.8]} 15. Nf4 {[%clk 0:02:29.4]}
15... Qd7 {[%clk 0:02:17.3]} 16. Ng5 {[%clk 0:02:28]} 16... Nd4 {[%clk
0:02:12.1]} 17. Be3 {[%clk 0:02:15.4]} 17... h6 {[%clk 0:01:43.2]} 18. Ngh3
{[%clk 0:02:11.8]} 18... Kh7 {[%clk 0:01:36.3]} 19. h5 {[%clk 0:02:06.2]} 19...
g5 {[%clk 0:01:35.9]} 20. Ng6 {[%clk 0:02:06.3]} 20... Rf7 {[%clk 0:01:36.2]}
21. Bxg5 {[%clk 0:01:56.1]} 21... hxg5 {[%clk 0:01:36.3]} 22. Nxg5+ {[%clk
0:01:56.1]} 22... Kg8 {[%clk 0:01:37.1]} 23. Nxf7 {[%clk 0:01:56]} 23... Kxf7
{[%clk 0:01:38]} 24. Re1 {[%clk 0:01:41]} 24... e5 {[%clk 0:01:29.2]} 25. f3
{[%clk 0:01:37.5]} 25... Nf6 {[%clk 0:01:29.2]} 26. f4 {[%clk 0:01:31.2]} 26...
exf4 {[%clk 0:01:14]} 27. gxf4 {[%clk 0:01:28.2]} 27... fxe4 {[%clk 0:01:01.4]}
28. dxe4 {[%clk 0:01:27.7]} 28... Qc6 {[%clk 0:00:58.9]} 29. b5 {[%clk
0:01:22.9]} 29... Qb7 {[%clk 0:00:59]} 30. Qd3 {[%clk 0:00:39.7]} 30... Re8
{[%clk 0:00:57.9]} 31. Kh3 {[%clk 0:00:30.9]} 31... Nxe4 {[%clk 0:00:57.7]} 32.
Rf1 {[%clk 0:00:17.3]} 32... Qd7+ {[%clk 0:00:55.8]} 33. f5 {[%clk 0:00:16.2]}
33... Ng5+ {[%clk 0:00:53.6]} 34. Kg4 {[%clk 0:00:15.7]} 34... Re4+ {[%clk
0:00:43.6]} 35. Kxg5 {[%clk 0:00:15.3]} 35... Bf6+ {[%clk 0:00:35.9]} 36. Kh6
{[%clk 0:00:15.4]} 36... Qd8 {[%clk 0:00:36.6]} 37. Qxe4 {[%clk 0:00:12.1]}
37... Bg7+ {[%clk 0:00:36.9]} 38. Kh7 {[%clk 0:00:11.2]} 38... Qg8# {[%clk
0:00:37.8]} 0-1

[Event "Late-Titled-Tuesday-Blitz-November-28-2023"]
[Site "Chess.com"]
[Date "2023.11.28"]
[Round "4"]
[White "GoltsevDmitry2000"]
[Black "jefferyx"]
[Result "0-1"]
[WhiteElo "2664"]
[BlackElo "2981"]
[TimeControl "180+1"]
[EndTime "14:36:43 PST"]
[Termination "jefferyx won by checkmate"]

1. e4 {[%clk 0:03:00]} 1... c5 {[%clk 0:02:59.7]} 2. Nf3 {[%clk 0:03:00.2]} 2...
d6 {[%clk 0:02:59.5]} 3. d4 {[%clk 0:02:59.9]} 3... cxd4 {[%clk 0:03:00.4]} 4.
Nxd4 {[%clk 0:03:00.3]} 4... Nf6 {[%clk 0:03:00.3]} 5. Nc3 {[%clk 0:03:00.6]}
5... a6 {[%clk 0:03:01]} 6. Be2 {[%clk 0:03:00]} 6... e5 {[%clk 0:03:00.4]} 7.
Nb3 {[%clk 0:02:59.9]} 7... Be7 {[%clk 0:03:00.1]} 8. O-O {[%clk 0:03:00.1]}
8... O-O {[%clk 0:02:59.7]} 9. Be3 {[%clk 0:03:00.6]} 9... Be6 {[%clk
0:02:58.4]} 10. Nd5 {[%clk 0:02:58.6]} 10... Nbd7 {[%clk 0:02:48.2]} 11. f3
{[%clk 0:02:49.3]} 11... Bxd5 {[%clk 0:02:40.1]} 12. exd5 {[%clk 0:02:49.2]}
12... Ne8 {[%clk 0:02:41]} 13. c4 {[%clk 0:02:47.6]} 13... Bg5 {[%clk
0:02:33.9]} 14. Bf2 {[%clk 0:02:45.5]} 14... Rc8 {[%clk 0:02:33.3]} 15. a4
{[%clk 0:02:25.5]} 15... a5 {[%clk 0:02:28.2]} 16. g3 {[%clk 0:02:09.8]} 16...
b6 {[%clk 0:02:27.5]} 17. h4 {[%clk 0:02:00.7]} 17... Bh6 {[%clk 0:02:26.7]} 18.
Nd2 {[%clk 0:01:49.7]} 18... f5 {[%clk 0:02:25.8]} 19. b3 {[%clk 0:01:48.2]}
19... Nc5 {[%clk 0:02:24.6]} 20. Qc2 {[%clk 0:01:45.6]} 20... Bxd2 {[%clk
0:02:12]} 21. Qxd2 {[%clk 0:01:44.5]} 21... Nxb3 {[%clk 0:02:10.6]} 22. Qb2
{[%clk 0:01:38.5]} 22... Nxa1 {[%clk 0:02:09.8]} 23. Bxb6 {[%clk 0:01:38.2]}
23... Rb8 {[%clk 0:02:01.6]} 24. Rb1 {[%clk 0:01:30.6]} 24... Qxb6+ {[%clk
0:01:57.5]} 25. Qxb6 {[%clk 0:01:29.2]} 25... Rxb6 {[%clk 0:01:58.4]} 26. Rxb6
{[%clk 0:01:29.6]} 26... Nc2 {[%clk 0:01:59.3]} 27. Ra6 {[%clk 0:00:57]} 27...
Nd4 {[%clk 0:01:58.7]} 28. Kf2 {[%clk 0:00:55.7]} 28... Nb3 {[%clk 0:01:54.3]}
29. Bd1 {[%clk 0:00:50.9]} 29... Nc5 {[%clk 0:01:54.2]} 30. Rxa5 {[%clk
0:00:51.3]} 30... Nc7 {[%clk 0:01:54.6]} 31. Ra7 {[%clk 0:00:51.4]} 31... N7a6
{[%clk 0:01:48.3]} 32. Bc2 {[%clk 0:00:37.6]} 32... g6 {[%clk 0:01:47.6]} 33. h5
{[%clk 0:00:12.3]} 33... Rb8 {[%clk 0:01:45.6]} 34. hxg6 {[%clk 0:00:08.8]}
34... Rb2 {[%clk 0:01:43.6]} 35. gxh7+ {[%clk 0:00:09.4]} 35... Kh8 {[%clk
0:01:43.9]} 36. Rf7 {[%clk 0:00:09.1]} 36... Rxc2+ {[%clk 0:01:44.4]} 37. Kg1
{[%clk 0:00:07]} 37... Rxc4 {[%clk 0:01:43.8]} 38. a5 {[%clk 0:00:04.8]} 38...
Rd4 {[%clk 0:01:43.1]} 39. Kh2 {[%clk 0:00:04.7]} 39... Rxd5 {[%clk 0:01:43]}
40. g4 {[%clk 0:00:05.2]} 40... fxg4 {[%clk 0:01:42.1]} 41. fxg4 {[%clk
0:00:06.1]} 41... e4 {[%clk 0:01:41.2]} 42. Kg3 {[%clk 0:00:06.6]} 42... Ne6
{[%clk 0:01:31.9]} 43. Re7 {[%clk 0:00:05.7]} 43... Ng5 {[%clk 0:01:31.7]} 44.
Kf4 {[%clk 0:00:04.6]} 44... Rxa5 {[%clk 0:01:28.3]} 45. Rd7 {[%clk 0:00:03]}
45... Rd5 {[%clk 0:01:28]} 46. Ra7 {[%clk 0:00:02.8]} 46... Nc5 {[%clk
0:01:27.7]} 47. Re7 {[%clk 0:00:02.4]} 47... Nce6+ {[%clk 0:01:27.7]} 48. Kg3
{[%clk 0:00:02.6]} 48... Rd3+ {[%clk 0:01:27.6]} 49. Kf2 {[%clk 0:00:01.5]}
49... d5 {[%clk 0:01:27.4]} 50. Ke2 {[%clk 0:00:02.2]} 50... d4 {[%clk
0:01:27.2]} 51. Ra7 {[%clk 0:00:03.1]} 51... Nf4+ {[%clk 0:01:27.1]} 52. Kf2
{[%clk 0:00:04]} 52... Ngh3+ {[%clk 0:01:24.9]} 53. Ke1 {[%clk 0:00:03.7]} 53...
e3 {[%clk 0:01:24.8]} 54. g5 {[%clk 0:00:03.8]} 54... Nxg5 {[%clk 0:01:20.2]}
55. Ra5 {[%clk 0:00:03.6]} 55... Nf3+ {[%clk 0:01:20]} 56. Kf1 {[%clk
0:00:03.2]} 56... Rd1# {[%clk 0:01:20.9]} 0-1

[Event "Late-Titled-Tuesday-Blitz-November-28-2023"]
[Site "Chess.com"]
[Date "2023.11.28"]
[Round "4"]
[White "MeisterJabo"]
[Black "The_Straightforward_Rook"]
[Result "0-1"]
[WhiteElo "2255"]
[BlackElo "2466"]
[TimeControl "180+1"]
[EndTime "14:36:52 PST"]
[Termination "The_Straightforward_Rook won by resignation"]

1. c4 {[%clk 0:02:55.6]} 1... e5 {[%clk 0:02:59.1]} 2. g3 {[%clk 0:02:55.4]}
2... Nf6 {[%clk 0:02:58.5]} 3. Bg2 {[%clk 0:02:55.6]} 3... c6 {[%clk 0:02:59.2]}
4. d4 {[%clk 0:02:55.1]} 4... e4 {[%clk 0:02:58.8]} 5. d5 {[%clk 0:02:55]} 5...
Bb4+ {[%clk 0:02:56.1]} 6. Bd2 {[%clk 0:02:54.5]} 6... Qe7 {[%clk 0:02:56.6]} 7.
Nc3 {[%clk 0:02:54.2]} 7... O-O {[%clk 0:02:53.4]} 8. Nh3 {[%clk 0:02:53.6]}
8... cxd5 {[%clk 0:02:51.3]} 9. cxd5 {[%clk 0:02:51.2]} 9... d6 {[%clk 0:02:50]}
10. O-O {[%clk 0:02:48.3]} 10... Bf5 {[%clk 0:02:46.7]} 11. Nxe4 {[%clk
0:02:24.5]} 11... Bxe4 {[%clk 0:02:36.4]} 12. f3 {[%clk 0:01:50.4]} 12... Bxd2
{[%clk 0:02:34.1]} 13. Qxd2 {[%clk 0:01:51.3]} 13... Bxd5 {[%clk 0:02:33.7]} 14.
e4 {[%clk 0:01:52]} 14... Bc6 {[%clk 0:02:32.8]} 15. Rad1 {[%clk 0:01:51.6]}
15... d5 {[%clk 0:02:31.3]} 16. e5 {[%clk 0:01:20.7]} 16... Qxe5 {[%clk
0:02:29.9]} 17. Rfe1 {[%clk 0:01:21.4]} 17... Qc7 {[%clk 0:02:28.4]} 18. g4
{[%clk 0:01:21.8]} 18... Na6 {[%clk 0:02:20.1]} 19. Nf4 {[%clk 0:01:20.7]} 19...
Rfe8 {[%clk 0:02:18.9]} 20. g5 {[%clk 0:01:20.7]} 20... Nd7 {[%clk 0:02:12.7]}
21. Nxd5 {[%clk 0:00:55.5]} 21... Bxd5 {[%clk 0:02:11.8]} 22. Qxd5 {[%clk
0:00:56.1]} 22... Qc5+ {[%clk 0:02:11]} 23. Qxc5 {[%clk 0:00:56.1]} 23... Ndxc5
{[%clk 0:02:08.3]} 24. Rxe8+ {[%clk 0:00:52.7]} 24... Rxe8 {[%clk 0:02:07.8]}
25. f4 {[%clk 0:00:51.5]} 25... Kf8 {[%clk 0:02:03.7]} 26. a3 {[%clk 0:00:50.7]}
26... b6 {[%clk 0:01:56.2]} 27. b4 {[%clk 0:00:49.9]} 27... Ne6 {[%clk
0:01:56.7]} 28. Rd7 {[%clk 0:00:43]} 28... Nxf4 {[%clk 0:01:53.4]} 29. Bf1
{[%clk 0:00:26.7]} 29... Nb8 {[%clk 0:01:51.5]} 30. Rxa7 {[%clk 0:00:27]} 30...
Ne6 {[%clk 0:01:49.1]} 31. h4 {[%clk 0:00:24.7]} 31... Rd8 {[%clk 0:01:47.8]}
32. Rb7 {[%clk 0:00:24.1]} 32... Nd7 {[%clk 0:01:46.4]} 33. Bb5 {[%clk
0:00:22.6]} 33... Ne5 {[%clk 0:01:44]} 34. Rxb6 {[%clk 0:00:21.7]} 34... Nf3+
{[%clk 0:01:42.2]} 35. Kf2 {[%clk 0:00:21.5]} 35... Nxh4 {[%clk 0:01:43.1]} 36.
Bc4 {[%clk 0:00:20.1]} 36... Nxg5 {[%clk 0:01:40.3]} 37. a4 {[%clk 0:00:19.5]}
37... Ne4+ {[%clk 0:01:39.1]} 38. Ke3 {[%clk 0:00:16.9]} 38... Nd6 {[%clk
0:01:38.8]} 39. Bb3 {[%clk 0:00:16.5]} 39... Nhf5+ {[%clk 0:01:38.4]} 40. Kf4
{[%clk 0:00:15.7]} 40... Re8 {[%clk 0:01:30.5]} 41. a5 {[%clk 0:00:14.8]} 41...
Re4+ {[%clk 0:01:27.3]} 42. Kf3 {[%clk 0:00:13.8]} 42... Re3+ {[%clk 0:01:27.6]}
43. Kf2 {[%clk 0:00:12.7]} 43... Rxb3 {[%clk 0:01:28.2]} 44. a6 {[%clk 0:00:13]}
44... Ra3 {[%clk 0:01:28.4]} 45. b5 {[%clk 0:00:12.1]} 45... Ra5 {[%clk
0:01:21.9]} 46. Rb8+ {[%clk 0:00:12.1]} 46... Ke7 {[%clk 0:01:21]} 47. Kf3
{[%clk 0:00:03.4]} 47... Nxb5 {[%clk 0:01:18.1]} 48. Rb7+ {[%clk 0:00:02.5]}
48... Kf6 {[%clk 0:01:17.6]} 49. a7 {[%clk 0:00:02.5]} 49... Nxa7 {[%clk
0:01:17.3]} 50. Rb6+ {[%clk 0:00:02.9]} 50... Kg5 {[%clk 0:01:14.1]} 51. Kg2
{[%clk 0:00:02.6]} 51... Nb5 {[%clk 0:01:12.4]} 52. Rb7 {[%clk 0:00:03.5]} 52...
Nbd6 {[%clk 0:01:10.4]} 53. Rb2 {[%clk 0:00:02.3]} 53... Ra3 {[%clk 0:01:10.1]}
54. Rf2 {[%clk 0:00:01.9]} 54... h5 {[%clk 0:01:10.1]} 0-1

[Event "Late-Titled-Tuesday-Blitz-November-28-2023"]
[Site "Chess.com"]
[Date "2023.11.28"]
[Round "4"]
[White "zouchen6"]
[Black "ThePeacefulPanda"]
[Result "0-1"]
[WhiteElo "2669"]
[BlackElo "2552"]
[TimeControl "180+1"]
[EndTime "14:36:53 PST"]
[Termination "ThePeacefulPanda won by resignation"]

1. Nf3 {[%clk 0:03:00.9]} 1... Nf6 {[%clk 0:02:56.8]} 2. c4 {[%clk 0:03:00.5]}
2... c5 {[%clk 0:02:56.6]} 3. Nc3 {[%clk 0:02:59.8]} 3... g6 {[%clk 0:02:56.6]}
4. e3 {[%clk 0:02:55.2]} 4... Bg7 {[%clk 0:02:56.3]} 5. d4 {[%clk 0:02:52.2]}
5... cxd4 {[%clk 0:02:56.6]} 6. exd4 {[%clk 0:02:53.1]} 6... d5 {[%clk
0:02:57.2]} 7. cxd5 {[%clk 0:02:53.1]} 7... Nxd5 {[%clk 0:02:58.1]} 8. h3 {[%clk
0:02:49.6]} 8... O-O {[%clk 0:02:57.6]} 9. Bc4 {[%clk 0:02:46.5]} 9... Nxc3
{[%clk 0:02:56]} 10. bxc3 {[%clk 0:02:45.9]} 10... Qc7 {[%clk 0:02:56.7]} 11.
Qb3 {[%clk 0:02:42.7]} 11... Nc6 {[%clk 0:02:46.9]} 12. Be2 {[%clk 0:02:40.4]}
12... Na5 {[%clk 0:02:40.7]} 13. Qb4 {[%clk 0:02:38.5]} 13... Be6 {[%clk
0:02:37.9]} 14. Bg5 {[%clk 0:02:29.6]} 14... Bc4 {[%clk 0:02:32.7]} 15. Bxc4
{[%clk 0:02:25.7]} 15... Nxc4 {[%clk 0:02:33.6]} 16. O-O {[%clk 0:02:25.2]}
16... e6 {[%clk 0:02:32.8]} 17. a4 {[%clk 0:02:22.9]} 17... Rfc8 {[%clk
0:02:27.7]} 18. Rfc1 {[%clk 0:02:19]} 18... b6 {[%clk 0:02:23.1]} 19. Qb3 {[%clk
0:02:14.5]} 19... Na5 {[%clk 0:02:22.8]} 20. Qd1 {[%clk 0:02:13.8]} 20... Qc4
{[%clk 0:02:22.3]} 21. Rab1 {[%clk 0:02:07.5]} 21... Qc6 {[%clk 0:02:12.9]} 22.
Nd2 {[%clk 0:01:15.9]} 22... Nc4 {[%clk 0:02:12.2]} 23. Nxc4 {[%clk 0:01:15.6]}
23... Qxc4 {[%clk 0:02:13.1]} 24. Rb4 {[%clk 0:01:15.2]} 24... Qc6 {[%clk
0:02:09.4]} 25. Be3 {[%clk 0:01:12.2]} 25... Bf8 {[%clk 0:02:06.8]} 26. Rb5
{[%clk 0:01:09.8]} 26... a6 {[%clk 0:02:06.5]} 27. d5 {[%clk 0:01:09.6]} 27...
exd5 {[%clk 0:01:56.1]} 28. Rxb6 {[%clk 0:01:10]} 28... Qd7 {[%clk 0:01:45.7]}
29. c4 {[%clk 0:00:54.3]} 29... Bc5 {[%clk 0:01:45.3]} 30. Rb3 {[%clk
0:00:44.7]} 30... Qxa4 {[%clk 0:01:34.6]} 31. Ra1 {[%clk 0:00:36.4]} 31... Qd7
{[%clk 0:01:25.7]} 32. cxd5 {[%clk 0:00:35.4]} 32... Bxe3 {[%clk 0:01:22.6]} 33.
Rxe3 {[%clk 0:00:36.3]} 33... a5 {[%clk 0:01:22.8]} 34. d6 {[%clk 0:00:32.3]}
34... Rd8 {[%clk 0:01:17.8]} 35. Re7 {[%clk 0:00:31.7]} 35... Qf5 {[%clk
0:00:56.3]} 36. d7 {[%clk 0:00:30.5]} 36... Qf6 {[%clk 0:00:48.4]} 37. Re1
{[%clk 0:00:18]} 37... Qc6 {[%clk 0:00:46.2]} 38. Re8+ {[%clk 0:00:07.7]} 38...
Rxe8 {[%clk 0:00:42.1]} 39. dxe8=Q+ {[%clk 0:00:08.6]} 39... Qxe8 {[%clk
0:00:42.5]} 40. Qd5 {[%clk 0:00:08.9]} 40... a4 {[%clk 0:00:42.3]} 41. Qa2
{[%clk 0:00:09.2]} 41... a3 {[%clk 0:00:42.4]} 42. Qb2 {[%clk 0:00:09.3]} 42...
axb2 {[%clk 0:00:41.8]} 0-1

[Event "Late-Titled-Tuesday-Blitz-November-28-2023"]
[Site "Chess.com"]
[Date "2023.11.28"]
[Round "4"]
[White "Chessbard1972"]
[Black "SEBAZZANO"]
[Result "0-1"]
[WhiteElo "2386"]
[BlackElo "2267"]
[TimeControl "180+1"]
[EndTime "14:36:53 PST"]
[Termination "SEBAZZANO won by resignation"]

1. d4 {[%clk 0:03:00.9]} 1... Nf6 {[%clk 0:02:59.8]} 2. c4 {[%clk 0:03:00.6]}
2... c5 {[%clk 0:03:00]} 3. d5 {[%clk 0:03:00.5]} 3... e6 {[%clk 0:03:00.4]} 4.
Nc3 {[%clk 0:03:00.2]} 4... exd5 {[%clk 0:03:01.3]} 5. cxd5 {[%clk 0:03:00.9]}
5... d6 {[%clk 0:03:01.7]} 6. Nf3 {[%clk 0:03:01.5]} 6... g6 {[%clk 0:03:01.7]}
7. Nd2 {[%clk 0:03:02]} 7... Bg7 {[%clk 0:03:01.3]} 8. Nc4 {[%clk 0:03:02.7]}
8... O-O {[%clk 0:03:01.2]} 9. Bf4 {[%clk 0:03:03.4]} 9... Ne8 {[%clk
0:03:00.4]} 10. e3 {[%clk 0:03:02.2]} 10... a6 {[%clk 0:02:57.8]} 11. a4 {[%clk
0:03:02]} 11... Nd7 {[%clk 0:02:52.2]} 12. h3 {[%clk 0:03:00.2]} 12... Nb6
{[%clk 0:02:33.1]} 13. Na3 {[%clk 0:02:58]} 13... Nd7 {[%clk 0:02:31.1]} 14. Be2
{[%clk 0:02:55.5]} 14... Ne5 {[%clk 0:02:27.3]} 15. O-O {[%clk 0:02:54.2]} 15...
Qe7 {[%clk 0:02:15.1]} 16. Bg3 {[%clk 0:02:51.8]} 16... f5 {[%clk 0:02:01.9]}
17. f4 {[%clk 0:02:50.2]} 17... Nf7 {[%clk 0:02:00.7]} 18. Nc4 {[%clk
0:02:48.4]} 18... Bd7 {[%clk 0:01:53.6]} 19. a5 {[%clk 0:02:47.4]} 19... Bb5
{[%clk 0:01:51.8]} 20. Qd2 {[%clk 0:02:40.3]} 20... Nf6 {[%clk 0:01:32.4]} 21.
Nb6 {[%clk 0:02:38.1]} 21... Rae8 {[%clk 0:01:31.3]} 22. Bf2 {[%clk 0:02:32.4]}
22... Bxe2 {[%clk 0:01:27.9]} 23. Qxe2 {[%clk 0:02:31.7]} 23... Ne4 {[%clk
0:01:27.6]} 24. Nxe4 {[%clk 0:02:21.2]} 24... Qxe4 {[%clk 0:01:27.2]} 25. Nd7
{[%clk 0:02:19.8]} 25... Qxd5 {[%clk 0:01:18.1]} 26. Nxf8 {[%clk 0:02:18.2]}
26... Kxf8 {[%clk 0:01:16.2]} 27. Rfd1 {[%clk 0:02:17.7]} 27... Qb3 {[%clk
0:01:13.6]} 28. Rd2 {[%clk 0:02:11.2]} 28... Qb4 {[%clk 0:01:02.6]} 29. Ra3
{[%clk 0:02:00.8]} 29... Bxb2 {[%clk 0:00:53.7]} 30. Ra2 {[%clk 0:01:52.3]}
30... Bc3 {[%clk 0:00:45.9]} 31. Rdc2 {[%clk 0:01:50.2]} 31... Bf6 {[%clk
0:00:41.3]} 32. g4 {[%clk 0:01:47.4]} 32... fxg4 {[%clk 0:00:26.5]} 33. Kh2
{[%clk 0:01:48.3]} 33... gxh3 {[%clk 0:00:25]} 34. Rc4 {[%clk 0:01:37.5]} 34...
Qb1 {[%clk 0:00:20.9]} 35. Rd2 {[%clk 0:01:29.4]} 35... Qf5 {[%clk 0:00:19.3]}
36. Qf3 {[%clk 0:01:24.9]} 36... Ne5 {[%clk 0:00:16.3]} 37. Qxb7 {[%clk
0:01:08.9]} 37... Nxc4 {[%clk 0:00:15.8]} 38. Rd5 {[%clk 0:01:08.9]} 38... Qe4
{[%clk 0:00:15.1]} 39. Kxh3 {[%clk 0:00:59.9]} 39... Nxe3 {[%clk 0:00:15.1]} 40.
Rxd6 {[%clk 0:00:49.7]} 40... Qxb7 {[%clk 0:00:14.3]} 41. Rxf6+ {[%clk
0:00:49.8]} 41... Kg7 {[%clk 0:00:13.9]} 42. Bxe3 {[%clk 0:00:48.8]} 42... Qd7+
{[%clk 0:00:13.8]} 43. Kg2 {[%clk 0:00:44.8]} 43... Kxf6 {[%clk 0:00:13.9]} 44.
Bxc5 {[%clk 0:00:43.6]} 44... Qd5+ {[%clk 0:00:13.8]} 0-1

[Event "Late-Titled-Tuesday-Blitz-November-28-2023"]
[Site "Chess.com"]
[Date "2023.11.28"]
[Round "4"]
[White "falzehope0"]
[Black "Elbebiber"]
[Result "1-0"]
[WhiteElo "2363"]
[BlackElo "2133"]
[TimeControl "180+1"]
[EndTime "14:36:53 PST"]
[Termination "falzehope0 won on time"]

1. d4 {[%clk 0:02:58.9]} 1... Nf6 {[%clk 0:02:58.6]} 2. e3 {[%clk 0:02:59.8]}
2... e6 {[%clk 0:02:58.1]} 3. Bd3 {[%clk 0:02:57.4]} 3... c5 {[%clk 0:02:54.3]}
4. c3 {[%clk 0:02:56.1]} 4... Nc6 {[%clk 0:02:51]} 5. f4 {[%clk 0:02:56.2]} 5...
d5 {[%clk 0:02:42.6]} 6. Nf3 {[%clk 0:02:55.7]} 6... cxd4 {[%clk 0:02:35.9]} 7.
exd4 {[%clk 0:02:56.6]} 7... Ne4 {[%clk 0:02:29.8]} 8. O-O {[%clk 0:02:55.7]}
8... Be7 {[%clk 0:02:27.1]} 9. Nbd2 {[%clk 0:02:55.2]} 9... f5 {[%clk
0:02:17.2]} 10. Ne5 {[%clk 0:02:51.8]} 10... Nxe5 {[%clk 0:02:16.7]} 11. fxe5
{[%clk 0:02:52.7]} 11... O-O {[%clk 0:02:14.7]} 12. Qe2 {[%clk 0:02:52.1]} 12...
Bd7 {[%clk 0:02:09.3]} 13. g4 {[%clk 0:02:47.3]} 13... g6 {[%clk 0:01:55.7]} 14.
gxf5 {[%clk 0:02:45]} 14... exf5 {[%clk 0:01:53]} 15. Nf3 {[%clk 0:02:40.3]}
15... Be6 {[%clk 0:01:48.5]} 16. Bh6 {[%clk 0:02:38.2]} 16... Rf7 {[%clk
0:01:46.9]} 17. Kh1 {[%clk 0:02:36.9]} 17... Bf8 {[%clk 0:01:33.4]} 18. Bxf8
{[%clk 0:02:15.9]} 18... Kxf8 {[%clk 0:01:25.4]} 19. Rg1 {[%clk 0:02:12.5]}
19... a6 {[%clk 0:01:21.1]} 20. Rg2 {[%clk 0:02:12.3]} 20... Ke8 {[%clk
0:01:16.3]} 21. Rag1 {[%clk 0:02:10.3]} 21... Kd7 {[%clk 0:01:10.9]} 22. Ng5
{[%clk 0:02:03.7]} 22... Nxg5 {[%clk 0:01:06.3]} 23. Rxg5 {[%clk 0:02:03.1]}
23... Qe7 {[%clk 0:01:04.2]} 24. Qc2 {[%clk 0:01:58.2]} 24... b5 {[%clk
0:01:02.2]} 25. a4 {[%clk 0:01:56.7]} 25... b4 {[%clk 0:00:51.6]} 26. c4 {[%clk
0:01:52.2]} 26... dxc4 {[%clk 0:00:45.6]} 27. Bxc4 {[%clk 0:01:51.7]} 27... Rc8
{[%clk 0:00:45]} 28. b3 {[%clk 0:01:47.3]} 28... Bd5+ {[%clk 0:00:42.2]} 29.
R5g2 {[%clk 0:01:38.8]} 29... Bxg2+ {[%clk 0:00:37.6]} 30. Qxg2 {[%clk 0:01:37]}
30... Rff8 {[%clk 0:00:29]} 31. Qb7+ {[%clk 0:01:32.3]} 31... Kd8 {[%clk
0:00:27.4]} 32. Qxa6 {[%clk 0:01:29.6]} 32... Qc7 {[%clk 0:00:23.3]} 33. d5
{[%clk 0:01:24.3]} 33... Qxe5 {[%clk 0:00:20.2]} 34. Qb6+ {[%clk 0:01:17.5]}
34... Rc7 {[%clk 0:00:17.5]} 35. Qb8+ {[%clk 0:00:32.8]} 35... Ke7 {[%clk
0:00:13.4]} 36. Qxb4+ {[%clk 0:00:31.8]} 36... Qd6 {[%clk 0:00:12.2]} 37. Re1+
{[%clk 0:00:29.8]} 37... Kd7 {[%clk 0:00:11.5]} 38. Bb5+ {[%clk 0:00:29.8]} 1-0